fUSD/lending_fUSD_20250828
["ID","MTS","AMOUNT","RATE_DAILY","PERIOD"]
[381891866,1756392641002,-400.0,0.00038356,7]
[381891868,1756392641011,-400.0,0.00038356,7]
[381891870,1756392641020,-400.0,0.00038356,7]
[381891872,1756392641029,-400.0,0.00038356,7]
[381891874,1756392641038,-400.0,0.00038356,7]
[381891876,1756392641048,-400.0,0.00038356,7]
[381891878,1756392641057,-400.0,0.00038356,7]
[381891880,1756392641067,-400.0,0.00038356,7]
[381891882,1756392641076,-400.0,0.00038356,7]
[381891884,1756392641085,-400.0,0.00038356,7]
[381891886,1756392641094,-400.0,0.00038356,7]
[381891887,1756392641103,-400.0,0.00038356,7]
[381891890,1756392641113,-400.0,0.00038356,7]
[381891891,1756392641122,-400.0,0.00038356,7]
[381891893,1756392641132,-400.0,0.00038356,7]
[381891895,1756392641141,-542.83,0.00038356,7]
[381891897,1756392641151,-400.0,0.00038356,7]
[381891899,1756392641160,-523.34,0.00038356,7]
[381891902,1756392641170,-400.0,0.00038356,7]
[381891903,1756392641179,-400.0,0.00038356,7]
[381891905,1756392641189,-400.0,0.00038356,7]
[381891907,1756392641198,-400.0,0.00038356,7]
[381891909,1756392641207,-400.0,0.00038356,7]
[381891911,1756392641217,-457.57,0.00038356,7]
[381891913,1756392641226,-400.0,0.00038356,7]
[381891915,1756392641235,-400.0,0.00038356,7]
[381891917,1756392641245,-403.77,0.00038356,7]
[381891919,1756392641257,-400.0,0.00038356,7]
[381891921,1756392641266,-400.0,0.00038356,7]
[381891923,1756392641276,-546.87,0.00038356,7]
[381891925,1756392641285,-402.24449193,0.00038356,7]
[381891927,1756392641294,-401.46905744,0.00038356,7]
[381891929,1756392641304,-400.0,0.00038356,7]
[381891931,1756392641313,-400.0,0.00038356,7]
[381891933,1756392641322,-400.0,0.00038356,7]
[381891935,1756392641331,-402.19961845,0.00038356,7]
[381891937,1756392641340,-400.0,0.00038356,7]
[381891939,1756392641349,-400.0,0.00038356,7]
[381891941,1756392641359,-400.0,0.00038356,7]
[381891943,1756392641368,-400.0,0.00038356,7]
[381891945,1756392641377,-400.0,0.00038356,7]
[381891947,1756392641387,-400.0,0.00038356,7]
[381891949,1756392641401,-428.44,0.00038356,7]
[381891951,1756392641410,-400.0,0.00038356,7]
[381891953,1756392641419,-400.0,0.00038356,7]
[381891955,1756392641429,-400.0,0.00038356,7]
[381891957,1756392641439,-402.55969415,0.00038356,7]
[381891959,1756392641448,-500.0,0.00038356,7]
[381891961,1756392641457,-400.0,0.00038356,7]
[381891963,1756392641468,-403.45472156,0.00038356,7]
[381891965,1756392641477,-400.0,0.00038356,7]
[381891967,1756392641487,-473.35,0.00038356,7]
[381891969,1756392641497,-400.0,0.00038356,7]
[381891971,1756392641506,-400.0,0.00038356,7]
[381891973,1756392641515,-400.0,0.00038356,7]
[381891975,1756392641524,-456.00691366,0.00038356,7]
[381891977,1756392641534,-400.0,0.00038356,7]
[381891979,1756392641543,-400.0,0.00038356,7]
[381891981,1756392641552,-401.71861492,0.00038356,7]
[381891983,1756392641561,-355.77,0.00038356,7]
[381891985,1756392641571,-400.0,0.00038356,7]
[381891987,1756392641580,-400.0,0.00038356,7]
[381891989,1756392641590,-545.63,0.00038356,7]
[381891991,1756392641599,-403.40484857,0.00038356,7]
[381891993,1756392641608,-400.0,0.00038356,7]
[381891995,1756392641617,-406.38,0.00038356,7]
[381891997,1756392641627,-400.0,0.00038356,7]
[381891999,1756392641636,-188.53,0.00038356,7]
[381892001,1756392641645,-400.0,0.00038356,7]
[381892003,1756392641655,-400.0,0.00038356,7]
[381892005,1756392641664,-400.0,0.00038356,7]
[381892007,1756392641673,-400.0,0.00038356,7]
[381892009,1756392641682,-400.0,0.00038356,7]
[381892011,1756392641691,-400.0,0.00038356,7]
[381892013,1756392641701,-400.0,0.00038356,7]
[381892015,1756392641710,-400.0,0.00038356,7]
[381892017,1756392641721,-400.0,0.00038356,7]
[381892019,1756392641730,-400.0,0.00038356,7]
[381892021,1756392641740,-492.45,0.00038356,7]
[381892022,1756392641749,-400.0,0.00038356,7]
[381892025,1756392641759,-420.10648123,0.00038356,7]
[381892027,1756392641768,-400.0,0.00038356,7]
[381892028,1756392641778,-400.0,0.00038356,7]
[381892030,1756392641787,-400.0,0.00038356,7]
[381892032,1756392641796,-400.0,0.00038356,7]
[381892034,1756392641805,-400.0,0.00038356,7]
[381892036,1756392641814,-400.0,0.00038356,7]
[381892038,1756392641823,-400.0,0.00038356,7]
[381892040,1756392641832,-400.0,0.00038356,7]
[381892042,1756392641841,-400.0,0.00038356,7]
[381892044,1756392641851,-404.81403526,0.00038356,7]
[381892046,1756392641860,-400.0,0.00038356,7]
[381892048,1756392641869,-400.0,0.00038356,7]
[381892050,1756392641880,-400.0,0.00038356,7]
[381892052,1756392641889,-402.26166787,0.00038356,7]
[381892054,1756392641898,-400.0,0.00038356,7]
[381892056,1756392641908,-400.0,0.00038356,7]
[381892058,1756392641917,-400.0,0.00038356,7]
[381892060,1756392641926,-400.0,0.00038356,7]
[381892062,1756392641935,-400.0,0.00038356,7]
[381892064,1756392641944,-400.0,0.00038356,7]
[381892066,1756392641953,-400.0,0.00038356,7]
[381892068,1756392641963,-400.0,0.00038356,7]
[381892070,1756392641972,-400.0,0.00038356,7]
[381892072,1756392641981,-400.0,0.00038356,7]
[381892074,1756392641990,-400.0,0.00038356,7]
[381892076,1756392641999,-400.0,0.00038356,7]
[381892078,1756392642009,-400.0,0.00038356,7]
[381892080,1756392642019,-400.0,0.00038356,7]
[381892082,1756392642028,-312.76,0.00038356,7]
[381892084,1756392642037,-400.0,0.00038356,7]
[381892086,1756392642046,-423.5,0.00038356,7]
[381892088,1756392642055,-238.06573379,0.00038356,7]
[381892090,1756392642064,-400.0,0.00038356,7]
[381892092,1756392642073,-400.0,0.00038356,7]
[381892094,1756392642083,-400.46636871,0.00038356,7]
[381892096,1756392642091,-400.0,0.00038356,7]
[381892098,1756392642100,-400.0,0.00038356,7]
[381892100,1756392642110,-400.0,0.00038356,7]
[381892102,1756392642118,-400.0,0.00038356,7]
[381892104,1756392642128,-400.0,0.00038356,7]
[381892106,1756392642137,-400.0,0.00038356,7]
[381892108,1756392642146,-400.0,0.00038356,7]
[381892110,1756392642155,-544.98535331,0.00038356,7]
[381892112,1756392642164,-400.0,0.00038356,7]
[381892114,1756392642174,-400.0,0.00038356,7]
[381892116,1756392642183,-400.0,0.00038356,7]
[381892118,1756392642192,-400.0,0.00038356,7]
[381892120,1756392642201,-400.0,0.00038356,7]
[381892122,1756392642211,-400.0,0.00038356,7]
[381892124,1756392642221,-400.0,0.00038356,7]
[381892126,1756392642230,-400.0,0.00038356,7]
[381892128,1756392642239,-400.0,0.00038356,7]
[381892130,1756392642248,-400.0,0.00038356,7]
[381892132,1756392642257,-491.22,0.00038356,7]
[381892134,1756392642266,-400.0,0.00038356,7]
[381892136,1756392642275,-400.0,0.00038356,7]
[381892138,1756392642284,-520.05916657,0.00038356,7]
[381892139,1756392642294,-400.0,0.00038356,7]
[381892141,1756392642303,-400.0,0.00038356,7]
[381892143,1756392642312,-400.0,0.00038356,7]
[381892145,1756392642322,-400.0,0.00038356,7]
[381892147,1756392642331,-400.0,0.00038356,7]
[381892149,1756392642340,-400.0,0.00038356,7]
[381892151,1756392642350,-400.0,0.00038356,7]
[381892153,1756392642359,-400.0,0.00038356,7]
[381892155,1756392642368,-400.0,0.00038356,7]
[381892157,1756392642377,-400.0,0.00038356,7]
[381892159,1756392642387,-400.0,0.00038356,7]
[381892161,1756392642400,-400.0,0.00038356,7]
[381892163,1756392642409,-400.0,0.00038356,7]
[381892165,1756392642418,-400.0,0.00038356,7]
[381892167,1756392642428,-400.0,0.00038356,7]
[381892169,1756392642439,-453.64,0.00038356,7]
[381892171,1756392642450,-400.0,0.00038356,7]
[381892173,1756392642460,-400.0,0.00038356,7]
[381892175,1756392642471,-400.0,0.00038356,7]
[381892177,1756392642480,-400.0,0.00038356,7]
[381892179,1756392642490,-400.0,0.00038356,7]
[381892181,1756392642499,-400.0,0.00038356,7]
[381892183,1756392642508,-400.0,0.00038356,7]
[381892185,1756392642517,-400.0,0.00038356,7]
[381892187,1756392642526,-400.0,0.00038356,7]
[381892189,1756392642535,-406.24,0.00038356,7]
[381892191,1756392642543,-400.0,0.00038356,7]
[381892193,1756392642552,-400.0,0.00038356,7]
[381892195,1756392642562,-420.9,0.00038356,7]
[381892197,1756392642571,-400.0,0.00038356,7]
[381892199,1756392642581,-400.0,0.00038356,7]
[381892201,1756392642591,-400.0,0.00038356,7]
[381892203,1756392642601,-400.0,0.00038356,7]
[381892205,1756392642610,-400.0,0.00038356,7]
[381892207,1756392642619,-400.0,0.00038356,7]
[381892209,1756392642629,-400.0,0.00038356,7]
[381892211,1756392642639,-400.0,0.00038356,7]
[381892213,1756392642648,-400.0,0.00038356,7]
[381892216,1756392642659,-423.19,0.00038356,7]
[381892218,1756392642670,-400.0,0.00038356,7]
[381892220,1756392642681,-400.0,0.00038356,7]
[381892222,1756392642692,-400.0,0.00038356,7]
[381892224,1756392642703,-400.0,0.00038356,7]
[381892226,1756392642714,-400.0,0.00038356,7]
[381892227,1756392642725,-400.0,0.00038356,7]
[381892228,1756392642735,-400.0,0.00038356,7]
[381892230,1756392642746,-400.0,0.00038356,7]
[381892233,1756392642756,-400.0,0.00038356,7]
[381892234,1756392642765,-408.05277404,0.00038356,7]
[381892235,1756392642775,-400.0,0.00038356,7]
[381892237,1756392642784,-400.0,0.00038356,7]
[381892239,1756392642794,-418.73,0.00038356,7]
[381892240,1756392642804,-400.0,0.00038356,7]
[381892241,1756392642814,-400.0,0.00038356,7]
[381892242,1756392642824,-400.0,0.00038356,7]
[381892243,1756392642834,-360.6,0.00038356,7]
[381892244,1756392642844,-400.0,0.00038356,7]
[381892245,1756392642854,-400.0,0.00038356,7]
[381892247,1756392642864,-400.0,0.00038356,7]
[381892249,1756392642874,-400.0,0.00038356,7]
[381892251,1756392642885,-400.0,0.00038356,7]
[381892253,1756392642895,-400.0,0.00038356,7]
[381892255,1756392642904,-400.0,0.00038356,7]
[381892257,1756392642915,-400.0,0.00038356,7]
[381892259,1756392642926,-400.0,0.00038356,7]
[381892261,1756392642936,-400.0,0.00038356,7]
[381892264,1756392642946,-400.0,0.00038356,7]
[381892266,1756392642956,-400.0,0.00038356,7]
[381892268,1756392642967,-400.0,0.00038356,7]
[381892270,1756392642978,-400.0,0.00038356,7]
[381892272,1756392642987,-400.0,0.00038356,7]
[381892274,1756392642998,-400.0,0.00038356,7]
[381892276,1756392643008,-400.0,0.00038356,7]
[381892278,1756392643018,-500.49477086,0.00038356,7]
[381892280,1756392643028,-400.0,0.00038356,7]
[381892282,1756392643038,-400.0,0.00038356,7]
[381892284,1756392643048,-400.0,0.00038356,7]
[381892286,1756392643057,-400.0,0.00038356,7]
[381892288,1756392643067,-400.0,0.00038356,7]
[381892290,1756392643076,-400.0,0.00038356,7]
[381892292,1756392643085,-400.0,0.00038356,7]
[381892294,1756392643095,-400.0,0.00038356,7]
[381892296,1756392643106,-159.35,0.00038356,7]
[381892298,1756392643116,-400.0,0.00038356,7]
[381892300,1756392643127,-400.0,0.00038356,7]
[381892303,1756392643137,-400.0,0.00038356,7]
[381892305,1756392643147,-400.0,0.00038356,7]
[381892307,1756392643157,-400.0,0.00038356,7]
[381892309,1756392643167,-400.0,0.00038356,7]
[381892311,1756392643178,-400.0,0.00038356,7]
[381892313,1756392643188,-400.0,0.00038356,7]
[381892315,1756392643198,-400.0,0.00038356,7]
[381892317,1756392643208,-505.45,0.00038356,7]
[381892319,1756392643218,-400.0,0.00038356,7]
[381892321,1756392643229,-400.0,0.00038356,7]
[381892323,1756392643239,-400.0,0.00038356,7]
[381892326,1756392643250,-400.0,0.00038356,7]
[381892328,1756392643260,-400.0,0.00038356,7]
[381892330,1756392643271,-400.0,0.00038356,7]
[381892332,1756392643281,-400.0,0.00038356,7]
[381892334,1756392643292,-400.7530564,0.00038356,7]
[381892336,1756392643302,-400.0,0.00038356,7]
[381892338,1756392643313,-400.0,0.00038356,7]
[381892341,1756392643324,-400.0,0.00038356,7]
[381892343,1756392643335,-400.0,0.00038356,7]
[381892345,1756392643345,-400.0,0.00038356,7]
[381892347,1756392643355,-400.0,0.00038356,7]
[381892349,1756392643365,-400.0,0.00038356,7]
[381892351,1756392643376,-400.0,0.00038356,7]
[381892353,1756392643387,-400.0,0.00038356,7]
[381892355,1756392643400,-400.0,0.00038356,7]
[381892357,1756392643411,-400.0,0.00038356,7]
[381892359,1756392643424,-400.0,0.00038356,7]
[381892361,1756392643435,-400.0,0.00038356,7]
[381892363,1756392643446,-400.0,0.00038356,7]
[381892365,1756392643457,-400.0,0.00038356,7]
[381892368,1756392643469,-424.62,0.00038356,7]
[381892370,1756392643480,-400.0,0.00038356,7]
[381892372,1756392643491,-400.0,0.00038356,7]
[381892374,1756392643502,-216.7461077,0.00038356,7]
[381892376,1756392643513,-399.057245,0.00038356,7]
[381892378,1756392643523,-400.0,0.00038356,7]
[381892380,1756392643534,-400.0,0.00038356,7]
[381892382,1756392643545,-400.0,0.00038356,7]
[381892384,1756392643555,-400.0,0.00038356,7]
[381892386,1756392643565,-400.0,0.00038356,7]
[381892388,1756392643575,-400.0,0.00038356,7]
[381892390,1756392643585,-421.59042,0.00038356,7]
[381892392,1756392643596,-400.0,0.00038356,7]
[381892395,1756392643607,-400.0,0.00038356,7]
[381892397,1756392643618,-400.0,0.00038356,7]
[381892399,1756392643629,-400.0,0.00038356,7]
[381892401,1756392643639,-400.0,0.00038356,7]
[381892403,1756392643650,-400.0,0.00038356,7]
[381892405,1756392643660,-450.74,0.00038356,7]
[381892407,1756392643671,-400.0,0.00038356,7]
[381892409,1756392643682,-400.0,0.00038356,7]
[381892412,1756392643692,-158.156946,0.00038356,7]
[381892414,1756392643703,-400.0,0.00038356,7]
[381892416,1756392643714,-525.42,0.00038356,7]
[381892418,1756392643724,-400.0,0.00038356,7]
[381892420,1756392643735,-400.0,0.00038356,7]
[381892422,1756392643745,-400.0,0.00038356,7]
[381892424,1756392643755,-216.715994,0.00038356,7]
[381892426,1756392643765,-400.0,0.00038356,7]
[381892428,1756392643775,-400.0,0.00038356,7]
[381892430,1756392643786,-400.0,0.00038356,7]
[381892432,1756392643796,-400.0,0.00038356,7]
[381892434,1756392643805,-525.1,0.00038356,7]
[381892436,1756392643815,-487.52,0.00038356,7]
[381892438,1756392643824,-470.91,0.00038356,7]
[381892440,1756392643834,-400.0,0.00038356,7]
[381892442,1756392643843,-500.0,0.00038373,5]
[381892444,1756392643854,-500.0,0.00038373,5]
[381892446,1756392643863,-500.0,0.00038373,5]
[381892448,1756392643873,-248.04655731,0.00038373,5]
[381892451,1756392643883,-500.0,0.00038373,5]
[381892453,1756392643894,-547.58559426,0.00038373,5]
[381892455,1756392643905,-501.40240329,0.00038373,5]
[381892457,1756392643917,-367.37454,0.00038488,7]
[381892459,1756392643928,-3306.37087,0.00038488,30]
[381892461,1756392643939,-231.0,0.00038549,2]
[381892463,1756392643949,-400.0,0.0003863,7]
[381892465,1756392643959,-400.0,0.0003863,7]
[381892468,1756392643969,-183.54,0.0003863,7]
[381892470,1756392643979,-159.08,0.0003863,7]
[381892472,1756392643988,-270.83,0.0003863,7]
[381892474,1756392643998,-400.0,0.0003863,7]
[381892476,1756392644007,-199.69,0.0003863,7]
[381892478,1756392644017,-504.41,0.0003863,7]
[381892480,1756392644027,-400.0,0.0003863,7]
[381892482,1756392644038,-180.6,0.0003863,7]
[381892484,1756392644047,-486.74,0.0003863,7]
[381892486,1756392644058,-256.26,0.0003863,7]
[381892488,1756392644069,-400.0,0.0003863,7]
[381892490,1756392644079,-209.28,0.0003863,7]
[381892492,1756392644090,-425.11,0.0003863,7]
[381892494,1756392644100,-264.65,0.0003863,7]
[381892497,1756392644110,-400.0,0.0003863,7]
[381892499,1756392644121,-400.0,0.0003863,7]
[381892501,1756392644131,-337.45,0.0003863,7]
[381892503,1756392644141,-229.92280625,0.0003863,7]
[381892505,1756392644151,-400.0,0.0003863,7]
[381892507,1756392644160,-399.057245,0.0003863,7]
[381892509,1756392644170,-400.0,0.0003863,7]
[381892511,1756392644181,-421.59042,0.0003863,7]
[381892513,1756392644193,-216.715994,0.0003863,7]
[381892515,1756392644203,-168.0,0.0003864,2]
[381892517,1756392644214,-400.0,0.00038687,7]
[381892519,1756392644225,-400.0,0.00038687,7]
[381892521,1756392644235,-400.0,0.00038687,7]
[381892523,1756392644246,-427.91,0.00038687,7]
[381892525,1756392644256,-400.0,0.00038687,7]
[381892527,1756392644266,-421.28,0.00038687,7]
[381892529,1756392644276,-400.0,0.00038687,7]
[381892532,1756392644286,-400.0,0.00038687,7]
[381892534,1756392644296,-400.0,0.00038687,7]
[381892536,1756392644307,-400.0,0.00038687,7]
[381892538,1756392644317,-400.0,0.00038687,7]
[381892540,1756392644327,-400.0,0.00038687,7]
[381892542,1756392644337,-400.0,0.00038687,7]
[381892544,1756392644347,-400.0,0.00038687,7]
[381892546,1756392644356,-460.8,0.00038687,7]
[381892548,1756392644366,-500.0,0.00038687,7]
[381892550,1756392644375,-400.0,0.00038687,7]
[381892552,1756392644385,-433.96,0.00038687,7]
[381892554,1756392644400,-400.0,0.00038687,7]
[381892556,1756392644410,-400.0,0.00038687,7]
[381892558,1756392644419,-400.0,0.00038687,7]
[381892560,1756392644430,-485.08,0.00038687,7]
[381892563,1756392644441,-400.0,0.00038687,7]
[381892565,1756392644451,-400.0,0.00038687,7]
[381892567,1756392644460,-400.0,0.00038687,7]
[381892569,1756392644471,-400.0,0.00038687,7]
[381892571,1756392644482,-400.0,0.00038687,7]
[381892573,1756392644492,-400.0,0.00038687,7]
[381892575,1756392644502,-400.0,0.00038687,7]
[381892577,1756392644512,-400.0,0.00038687,7]
[381892579,1756392644522,-448.38,0.00038687,7]
[381892581,1756392644532,-367.37454,0.00038688,7]
[381892583,1756392644542,-3306.37087,0.00038688,30]
[381892585,1756392644551,-231.0,0.00038845,2]
[381892587,1756392644562,-367.37454,0.00038888,7]
[381892589,1756392644572,-200.57332501,0.00038904,7]
[381892591,1756392644582,-400.0,0.00038904,7]
[381892593,1756392644591,-400.0,0.00038904,7]
[381892595,1756392644602,-197.48,0.00038961,7]
[381892597,1756392644612,-157.5,0.00038961,7]
[381892599,1756392644621,-324.26,0.00038961,7]
[381892601,1756392644632,-162.32,0.00038961,7]
[381892603,1756392644642,-507.32,0.00038961,7]
[381892605,1756392644651,-27208.7563265,0.00039066,3]
[381892607,1756392644661,-168.0,0.00039076,2]
[381892610,1756392644671,-367.37454,0.00039088,7]
[381892612,1756392644681,-3306.37087,0.00039088,30]
[381892614,1756392644691,-168.0,0.00039157,2]
[381892616,1756392644700,-400.0,0.00039178,7]
[381892618,1756392644712,-400.0,0.00039178,7]
[381892620,1756392644722,-168.0,0.00039198,2]
[381892622,1756392644732,-231.0,0.00039222,2]
[381892624,1756392644742,-150.0,0.0003925,120]
[381892626,1756392644751,-2179.26737077,0.0003928,2]
[381892628,1756392644761,-367.37454,0.00039288,7]
[381892630,1756392644772,-3306.37087,0.00039288,30]
[381892632,1756392644782,-166.12,0.00039364,2]
[381892634,1756392644792,-168.0,0.00039432,2]
[381892636,1756392644802,-1215.12,0.00039452,37]
[381892638,1756392644811,-400.0,0.00039452,7]
[381892640,1756392644822,-400.0,0.00039452,7]
[381892643,1756392644832,-400.0,0.00039487,7]
[381892645,1756392644842,-400.0,0.00039487,7]
[381892647,1756392644852,-400.0,0.00039487,7]
[381892649,1756392644862,-509.58,0.00039487,7]
[381892651,1756392644872,-400.0,0.00039487,7]
[381892653,1756392644882,-400.0,0.00039487,7]
[381892655,1756392644891,-467.53,0.00039487,7]
[381892657,1756392644901,-400.0,0.00039487,7]
[381892659,1756392644911,-400.0,0.00039487,7]
[381892661,1756392644921,-400.91318116,0.00039487,7]
[381892663,1756392644930,-400.0,0.00039487,7]
[381892665,1756392644940,-400.0,0.00039487,7]
[381892667,1756392644950,-400.0,0.00039487,7]
[381892669,1756392644961,-400.0,0.00039487,7]
[381892670,1756392644971,-400.0,0.00039487,7]
[381892672,1756392644982,-400.0,0.00039487,7]
[381892674,1756392644992,-400.0,0.00039487,7]
[381892676,1756392645002,-400.0,0.00039487,7]
[381892678,1756392645012,-400.0,0.00039487,7]
[381892680,1756392645022,-400.0,0.00039487,7]
[381892682,1756392645032,-400.0,0.00039487,7]
[381892684,1756392645042,-400.0,0.00039487,7]
[381892686,1756392645052,-449.41,0.00039487,7]
[381892688,1756392645061,-400.0,0.00039487,7]
[381892689,1756392645071,-400.0,0.00039487,7]
[381892690,1756392645081,-400.0,0.00039487,7]
[381892692,1756392645091,-411.03256216,0.00039487,7]
[381892694,1756392645101,-513.01,0.00039487,7]
[381892696,1756392645112,-513.28,0.00039487,7]
[381892697,1756392645122,-400.0,0.00039487,7]
[381892699,1756392645132,-400.0,0.00039487,7]
[381892701,1756392645142,-400.0,0.00039487,7]
[381892703,1756392645151,-400.0,0.00039487,7]
[381892705,1756392645162,-400.0,0.00039487,7]
[381892706,1756392645172,-400.0,0.00039487,7]
[381892708,1756392645183,-400.0,0.00039487,7]
[381892710,1756392645194,-188.90351607,0.00039487,7]
[381892712,1756392645203,-400.0,0.00039487,7]
[381892714,1756392645214,-400.0,0.00039487,7]
[381892715,1756392645224,-400.0,0.00039487,7]
[381892717,1756392645234,-451.46352978,0.00039487,7]
[381892719,1756392645244,-1045.49076299,0.00039487,7]
[381892721,1756392645253,-400.0,0.00039487,7]
[381892723,1756392645263,-400.0,0.00039487,7]
[381892725,1756392645274,-400.0,0.00039487,7]
[381892726,1756392645284,-390.0,0.00039487,7]
[381892728,1756392645294,-400.0,0.00039487,7]
[381892730,1756392645304,-178.48556978,0.00039487,7]
[381892731,1756392645313,-400.0,0.00039487,7]
[381892733,1756392645323,-400.0,0.00039487,7]
[381892735,1756392645333,-400.0,0.00039487,7]
[381892737,1756392645344,-400.0,0.00039487,7]
[381892739,1756392645354,-400.0,0.00039487,7]
[381892740,1756392645364,-410.19,0.00039487,7]
[381892742,1756392645374,-504.56,0.00039487,7]
[381892766,1756392645640,-400.54128329,0.00039487,7]
[381892768,1756392645650,-213.83833788,0.00039487,7]
[381892770,1756392645659,-400.0,0.00039487,7]
[381892772,1756392645669,-395.87034931,0.00039487,7]
[381892774,1756392645679,-400.0,0.00039487,7]
[381892776,1756392645688,-400.0,0.00039487,7]
[381892778,1756392645697,-400.0,0.00039487,7]
[381892780,1756392645706,-400.0,0.00039487,7]
[381892781,1756392645715,-400.0,0.00039487,7]
[381892783,1756392645724,-400.0,0.00039487,7]
[381892785,1756392645734,-400.0,0.00039487,7]
[381892787,1756392645743,-400.0,0.00039487,7]
[381892789,1756392645752,-400.0,0.00039487,7]
[381892791,1756392645761,-338.45,0.00039487,7]
[381892793,1756392645770,-400.0,0.00039487,7]
[381892794,1756392645779,-400.0,0.00039487,7]
[381892796,1756392645788,-400.0,0.00039487,7]
[381892798,1756392645798,-400.0,0.00039487,7]
[381892800,1756392645807,-400.0,0.00039487,7]
[381892802,1756392645816,-400.0,0.00039487,7]
[381892804,1756392645826,-400.0,0.00039487,7]
[381892805,1756392645836,-515.85028363,0.00039487,7]
[381892807,1756392645845,-400.0,0.00039487,7]
[381892809,1756392645854,-400.0,0.00039487,7]
[381892811,1756392645863,-400.0,0.00039487,7]
[381892813,1756392645873,-400.0,0.00039487,7]
[381892815,1756392645882,-400.0,0.00039487,7]
[381892817,1756392645891,-400.0,0.00039487,7]
[381892819,1756392645900,-400.0,0.00039487,7]
[381892821,1756392645909,-400.0,0.00039487,7]
[381892822,1756392645918,-479.97,0.00039487,7]
[381892824,1756392645927,-464.09,0.00039487,7]
[381892826,1756392645938,-503.46,0.00039487,7]
[381892828,1756392645947,-533.76,0.00039487,7]
[381892830,1756392645957,-500.0,0.00039487,2]
[381892832,1756392645968,-400.0,0.00039487,7]
[381892834,1756392645978,-400.0,0.00039487,7]
[381892836,1756392645987,-514.43,0.00039487,7]
[381892838,1756392645996,-401.08486043,0.00039487,7]
[381892839,1756392646006,-367.37454,0.00039488,7]
[381892841,1756392646015,-3306.37087,0.00039488,30]
[381892843,1756392646024,-151.3,0.00039654,2]
[381892845,1756392646033,-168.0,0.00039661,2]
[381892847,1756392646042,-367.37454,0.00039688,7]
[381892848,1756392646051,-3306.37087,0.00039688,30]
[381892850,1756392646062,-400.0,0.00039726,7]
[381892852,1756392646071,-190.06,0.00039726,7]
[381892854,1756392646080,-400.0,0.00039761,7]
[381892856,1756392646090,-400.0,0.00039761,7]
[381892858,1756392646099,-400.0,0.00039761,7]
[381892860,1756392646108,-514.97,0.00039761,7]
[381892862,1756392646117,-190.64,0.00039761,7]
[381892864,1756392646126,-300.26,0.00039761,7]
[381892865,1756392646136,-239.45,0.00039761,7]
[381892867,1756392646145,-267.03,0.00039761,7]
[381892869,1756392646154,-231.9,0.00039761,7]
[381892871,1756392646163,-400.0,0.00039761,7]
[381892873,1756392646172,-400.0,0.00039761,7]